bitfinex/quotes_ETHUSD_20241024
["timestamp","ask_amount","ask_price","bid_price","bid_amount"]
[1729772259119,3.94728,2533.4,2533.1,1.22888079]
[1729772261757,3.94713,2533.5,2533.1,1.22888079]
[1729772262921,0.759,2533.9,2533.2,3.94753]
[1729772263163,3.94712,2533.5,2533.2,0.07894318]
[1729772263758,3.94686,2533.7,2533.4,0.8163]
[1729772263917,3.94686,2533.7,2533.4,0.89523613]
[1729772265061,3.94686,2533.7,2533.4,0.8163]
[1729772265561,3.94686,2533.7,2533.4,0.89523615]
[1729772266269,3.94686,2533.7,2533.4,2.06661595]
[1729772266577,3.94686,2533.7,2533.5,0.13092633]
[1729772268333,7.89374,2533.7,2533.5,0.13092633]
[1729772268540,3.94686,2533.7,2533.5,0.13092633]
[1729772268736,3.9468,2533.7,2533.5,0.13092633]
[1729772272271,3.94695,2533.6,2533.5,0.13092633]
[1729772272573,3.94662,2533.9,2533.5,0.13092633]
[1729772272780,3.94681,2533.7,2533.5,0.13092633]
[1729772275446,3.94667,2533.8,2533.5,0.13092633]
[1729772276494,0.8142,2534.1,2533.5,0.62826859]
[1729772276669,3.94656,2533.9,2533.5,4.57533859]
[1729772277055,3.94656,2533.9,2533.5,4.65426985]
[1729772277580,3.94648,2533.9,2533.5,0.62826859]
[1729772278086,0.8142,2534.1,2533.5,0.13092633]
[1729772278277,4.73345,2533.6,2533.5,0.13092633]
[1729772279577,5.10275282,2533.6,2533.5,0.13092633]
[1729772280589,5.10281842,2533.6,2533.5,0.13092633]
[1729772282381,4.73345,2533.6,2533.5,0.13092633]
[1729772282586,5.10297245,2533.6,2533.5,0.13092633]
[1729772283549,4.31647245,2533.6,2533.5,0.13092633]
[1729772286083,5.09277245,2533.6,2533.5,0.13092633]
[1729772287390,8.09277245,2533.6,2533.5,0.13092633]
[1729772289469,7.72325,2533.6,2533.5,0.13092633]
[1729772289687,9.55442422,2533.6,2533.5,0.13092633]
[1729772290199,3.94854,2532.6,2532.0,3.94936]
[1729772290401,3.94913,2532.2,2532.1,0.793]
[1729772290559,3.94898,2532.3,2532.1,0.793]
[1729772290761,3.94876,2532.5,2532.1,0.793]
[1729772290972,3.94876,2532.5,2532.1,1.27514018]
[1729772291193,0.7879,2532.7,2532.1,1.27514018]
[1729772291560,0.7879,2532.7,2531.8,2.92369183]
[1729772291561,3.94842,2532.7,2532.3,0.7873]
[1729772292404,3.94813,2532.9,2532.4,3.94874]
[1729772292572,3.94833,2532.8,2532.5,0.8125]
[1729772293458,3.94874,2532.5,2532.3,0.8265]
[1729772294670,3.94882,2532.4,2532.3,0.8265]
[1729772294862,3.94899,2532.3,2532.0,0.7511]
[1729772295586,3.94882,2532.4,2532.0,1.221156]
[1729772295789,3.94882,2532.4,2532.0,1.30013541]
[1729772295977,3.94899,2532.3,2532.0,1.30013541]
[1729772296159,3.94899,2532.3,2532.0,1.221156]
[1729772296363,3.94889,2532.4,2532.0,0.7511]
[1729772297199,3.94904,2532.3,2532.0,0.7511]
[1729772298170,3.94889,2532.4,2532.0,0.7511]
[1729772298598,3.94889,2532.4,2532.0,4.70054]
[1729772299902,7.89781,2532.4,2532.0,4.70054]
[1729772300204,3.94889,2532.4,2532.0,4.70054]
[1729772300502,7.89784,2532.4,2532.1,0.8127]
[1729772300670,3.94889,2532.4,2532.1,0.8127]
[1729772301903,3.94905,2532.3,2532.1,0.8127]
[1729772302472,3.94913,2532.2,2532.1,0.8127]
[1729772302885,3.94898,2532.3,2532.1,0.8127]
[1729772304277,3.94885,2532.4,2532.1,0.8127]
[1729772304735,3.94874,2532.5,2532.1,4.76197]
[1729772305015,3.94874,2532.5,2532.1,5.71998676]
[1729772305199,3.94859,2532.6,2532.1,5.71998676]
[1729772305402,3.94859,2532.6,2532.3,0.8192]
[1729772305786,3.94832,2532.8,2532.3,4.76815]
[1729772306029,3.94843,2532.7,2532.3,0.89817317]
[1729772306183,3.94843,2532.7,2532.4,0.48472332]
[1729772307996,3.9486,2532.6,2532.3,0.8192]
[1729772309120,3.94874,2532.5,2532.3,0.8192]
[1729772309315,3.94874,2532.5,2532.1,4.70516]
[1729772309529,3.94916,2532.2,2531.9,0.7987]
[1729772309818,3.94898,2532.3,2531.9,4.7482]
[1729772310819,3.94921,2532.2,2531.9,0.7987]
[1729772311419,3.949,2532.3,2531.9,0.7987]
[1729772311636,3.949,2532.3,2531.9,4.74829]
[1729772312723,3.94885,2532.4,2532.0,3.94938]
[1729772312910,3.94885,2532.4,2532.1,0.7506]
[1729772314185,3.94876,2532.5,2532.1,0.7506]
[1729772314619,3.94904,2532.3,2532.1,0.7506]
[1729772315088,3.94913,2532.2,2531.9,1.92635918]
[1729772315500,3.94913,2532.2,2531.9,0.7642]
[1729772316424,3.94913,2532.2,2530.9,0.54835838]
[1729772316425,3.94982,2531.8,2531.3,4.72722]
[1729772316734,3.95014,2531.6,2531.3,0.7768]
[1729772317039,3.94977,2531.8,2531.3,4.72733]
[1729772317437,3.94993,2531.7,2531.3,4.72733]
[1729772317591,3.9496,2531.9,2531.4,3.95037]
[1729772317923,3.94959,2532.0,2531.6,3.95004]
[1729772318139,4.73048,2532.3,2531.7,0.79]
[1729772318319,3.94975,2531.8,2531.7,0.79]
[1729772318502,3.94975,2531.8,2531.4,0.7984]
[1729772318699,3.94975,2531.8,2531.4,4.74875]
[1729772319108,7.89932,2531.9,2531.4,4.82774714]
[1729772319405,7.89935,2531.9,2531.4,4.82774714]
[1729772319589,7.89935,2531.9,2531.4,4.74875]
[1729772320222,3.94963,2531.9,2531.4,4.74875]
[1729772320425,3.94963,2531.9,2531.4,4.73305056]
[1729772320728,7.89932,2531.9,2531.4,4.73305056]
[1729772320906,3.94963,2531.9,2531.4,4.73305056]
[1729772321110,7.89879,2532.1,2531.5,3.9502]
[1729772321315,0.7815,2532.3,2531.5,3.95016]
[1729772321574,3.9497,2531.9,2531.5,3.95016]
[1729772322190,3.94886,2532.4,2531.3,3.95043]
[1729772322387,3.94998,2531.7,2531.3,3.95043]
[1729772323191,3.94976,2531.8,2531.4,3.95037]
[1729772323390,3.94969,2531.9,2531.5,0.8009]
[1729772323590,7.8994,2531.9,2531.5,0.87989659]
[1729772324217,3.94977,2531.8,2531.5,0.8009]
[1729772324492,3.94969,2531.9,2531.5,0.8009]
[1729772324705,7.89938,2531.9,2531.5,0.8009]
[1729772325912,3.94986,2531.8,2531.5,0.8009]
[1729772328215,3.95,2531.7,2531.2,4.50059]
[1729772328527,3.95,2531.7,2531.3,3.95046]
[1729772328920,3.94977,2531.8,2531.4,3.95035]
[1729772329124,3.94977,2531.8,2531.5,0.7665]
[1729772329928,3.95,2531.7,2531.5,0.7665]
[1729772330744,7.89961,2531.8,2531.5,0.7665]
[1729772331317,3.94977,2531.8,2531.5,0.7665]
[1729772332612,7.8996,2531.8,2531.5,0.7665]
[1729772333249,3.94977,2531.8,2531.5,0.7665]
[1729772333615,7.89962,2531.8,2531.5,0.7665]
[1729772334209,7.89963,2531.8,2531.5,0.7665]
[1729772334409,7.89963,2531.8,2531.5,2.07463774]
[1729772334720,4.73187,2532.2,2531.8,0.7729]
[1729772334939,3.94898,2532.3,2532.1,1.30813774]
[1729772335247,0.8009,2532.7,2532.2,2.08103774]
[1729772335413,3.94897,2532.3,2532.2,0.7729]
[1729772336124,3.94889,2532.4,2532.2,2.08103774]
[1729772336328,3.9485,2532.7,2532.2,4.72196]
[1729772336656,3.94869,2532.5,2532.2,0.7729]
[1729772338954,3.94835,2532.7,2532.2,0.7729]
[1729772339140,3.9492,2532.2,2531.9,0.7573]
[1729772339546,3.94905,2532.3,2531.9,0.7573]
[1729772339714,3.94905,2532.3,2531.9,4.70682]
[1729772340758,4.72878,2532.5,2531.9,4.70682]
[1729772340936,3.9489,2532.4,2531.9,4.78580124]
[1729772341137,3.9489,2532.4,2531.9,5.65935036]
[1729772341471,3.94829,2532.8,2532.1,0.808]
[1729772341635,3.94876,2532.5,2532.1,4.75727]
[1729772341830,3.94876,2532.5,2532.1,0.808]
[1729772341831,3.94893,2532.4,2532.1,0.808]
[1729772342573,7.89786,2532.4,2532.1,0.808]
[1729772342734,3.94893,2532.4,2532.1,0.808]
[1729772342929,3.94884,2532.4,2532.1,0.808]
[1729772343144,3.94876,2532.5,2532.1,4.75728]
[1729772343474,3.94876,2532.5,2532.1,0.808]
[1729772343650,3.94884,2532.4,2532.1,0.808]
[1729772344173,3.94835,2532.7,2532.1,0.808]
[1729772344375,3.94877,2532.5,2532.1,0.808]
[1729772345880,3.94882,2532.4,2532.1,0.808]
[1729772346042,3.94924,2532.2,2531.8,0.7731]
[1729772346240,3.94931,2532.1,2531.8,0.7731]
[1729772346596,3.94968,2531.9,2531.6,0.7731]
[1729772346776,3.94929,2532.1,2531.6,4.72308]
[1729772346942,3.94913,2532.2,2531.8,3.94975]
[1729772347137,3.94906,2532.3,2531.7,0.07899137]
[1729772347479,3.94883,2532.4,2532.0,4.72348]
[1729772348295,3.94875,2532.5,2532.0,4.72348]
[1729772348455,7.8975,2532.5,2532.0,4.72348]
[1729772348656,3.94885,2532.4,2532.0,4.72348]
[1729772349113,3.94868,2532.5,2532.0,4.72342]
[1729772349395,3.94857,2532.6,2532.1,3.94926]
[1729772349592,3.94857,2532.6,2532.0,1.25434005]
[1729772349897,3.94867,2532.5,2532.1,3.94921]
[1729772350097,3.94867,2532.5,2532.1,7.89841]
[1729772350258,3.94867,2532.5,2532.1,3.9492]
[1729772351874,3.94867,2532.5,2532.1,7.89841]
[1729772352376,3.94867,2532.5,2532.1,3.9492]
[1729772352882,3.94867,2532.5,2532.1,7.8984]
[1729772353209,7.8969,2532.7,2532.2,4.77243]
[1729772353770,3.94853,2532.6,2532.2,4.77243]
[1729772354311,3.94867,2532.5,2532.2,0.8234]
[1729772354467,3.94885,2532.4,2532.0,0.7878]
[1729772354672,3.94899,2532.3,2532.0,0.7878]
[1729772355385,3.9492,2532.2,2532.0,0.7878]
[1729772355575,3.9492,2532.2,2531.8,3.94972]
[1729772355773,3.9492,2532.2,2531.8,4.73212]
[1729772356007,3.9492,2532.2,2531.8,8.68184]
[1729772356313,3.94944,2532.1,2531.8,0.7824]
[1729772356483,3.94944,2532.1,2531.9,0.11645467]
[1729772359618,3.94944,2532.0,2531.9,0.11645467]
[1729772359783,0.7649,2532.1,2531.9,0.11645467]
[1729772359984,3.9492,2532.2,2531.9,0.11645467]
[1729772360515,0.7649,2532.7,2532.0,0.7697]
[1729772360817,3.94802,2533.0,2532.6,1.30799179]
[1729772361000,3.94802,2533.0,2532.5,0.7697]
[1729772361001,3.94798,2533.0,2532.5,6.02624179]
[1729772361199,3.94798,2533.0,2532.5,4.71825]
[1729772361400,3.94798,2533.0,2532.6,3.94849]
[1729772361618,4.94483618,2533.0,2532.6,3.94849]
[1729772361791,4.71272,2533.1,2532.7,1.30799179]
[1729772361995,4.71272,2533.1,2532.6,5.25640179]
[1729772362309,3.94782,2533.1,2532.6,3.94841]
[1729772362675,3.94782,2533.1,2532.5,0.7697]
[1729772362676,4.71463,2533.3,2532.7,3.94824]
[1729772362890,3.94759,2533.2,2532.8,3.94813]
[1729772363095,3.94744,2533.3,2532.8,3.94813]
[1729772363508,6.783636,2533.3,2532.8,3.94813]
[1729772364094,3.94764,2533.2,2532.6,3.94845]
[1729772364297,3.94773,2533.1,2532.7,3.94825]
[1729772368403,3.94744,2533.3,2532.7,3.94825]
[1729772368617,3.94749,2533.3,2532.8,3.94812]
[1729772369143,3.94781,2533.1,2532.7,3.94825]
[1729772369334,3.94789,2533.0,2532.6,3.94843]
[1729772372727,3.94798,2533.0,2532.5,4.7183]
[1729772373417,3.94816,2532.9,2532.5,4.71836]
[1729772374643,7.89602,2533.0,2532.5,4.71836]
[1729772375006,3.94798,2533.0,2532.5,4.71836]
[1729772375212,3.94805,2532.9,2532.5,4.71836]
[1729772377024,3.94805,2532.9,2532.5,8.66692]
[1729772377422,3.94805,2532.9,2532.5,4.71826]
[1729772378038,3.9479,2533.0,2532.6,3.9485]
[1729772378751,4.7724,2533.1,2532.6,3.9485]
[1729772378951,4.77236,2533.1,2532.7,3.94829]
[1729772382470,4.77236,2533.1,2532.7,7.89653]
[1729772383334,4.77236,2533.1,2532.7,3.94824]
[1729772384191,4.77236,2533.1,2532.7,7.89649]
[1729772384537,3.94776,2533.1,2532.7,7.89649]
[1729772385947,3.94776,2533.1,2532.7,3.94824]
[1729772387187,3.94776,2533.1,2532.7,7.89653]
[1729772388684,3.9476,2533.2,2532.8,3.94819]
[1729772388885,5.03637347,2533.2,2532.9,0.7589]
[1729772389092,3.94773,2533.1,2532.9,0.7589]
[1729772390755,3.94775,2533.1,2532.7,3.94834]
[1729772390952,7.89561,2533.1,2532.7,3.94834]
[1729772391150,5.14545182,2533.1,2532.7,3.94834]
[1729772391376,9.09332182,2533.1,2532.7,3.94834]
[1729772391574,5.14545182,2533.1,2532.7,3.94834]
[1729772391785,5.14545182,2533.1,2532.7,7.8966]
[1729772392373,3.94775,2533.1,2532.7,7.8966]
[1729772393196,4.71646,2533.5,2532.9,4.76028]
[1729772393410,4.71641,2533.5,2532.9,2.11933969]
[1729772393686,4.71641,2533.5,2533.0,3.94777]
[1729772393864,5.31875497,2533.5,2533.1,3.9477]
[1729772394681,5.31875497,2533.5,2533.0,3.94777]
[1729772394854,3.94734,2533.4,2533.0,7.89558]
[1729772395566,3.94734,2533.4,2533.0,3.94777]
[1729772395773,3.94734,2533.4,2533.0,7.89557]
[1729772395978,0.60234497,2533.5,2533.0,5.70743725]
[1729772395979,3.94714,2533.5,2533.0,5.70743725]
[1729772396185,3.94714,2533.5,2533.1,3.94767]
[1729772396488,3.94714,2533.5,2533.2,0.7668]
[1729772396785,3.94703,2533.6,2533.2,4.71435]
[1729772397388,3.94671,2533.8,2533.4,4.70434]
[1729772397696,4.73604,2533.8,2533.4,4.70434]
[1729772397989,4.73604,2533.8,2533.4,4.70429]
[1729772398155,4.73604,2533.8,2533.4,8.65148]
[1729772398462,3.94649,2533.9,2533.4,2.06413969]
[1729772398668,3.94649,2533.9,2533.5,3.94709]
[1729772398915,3.94649,2533.9,2533.4,6.01137969]
[1729772399258,3.94633,2534.0,2533.6,2.06483969]
[1729772399454,3.94612,2534.2,2533.6,6.01169969]
[1729772399688,3.94618,2534.1,2533.7,5.25381969]
[1729772400467,3.94618,2534.1,2533.7,1.30703969]
[1729772400877,3.9464,2534.0,2533.6,6.01178969]
[1729772401687,3.94687,2533.7,2533.3,0.7964]
[1729772401995,4.94741497,2533.7,2533.3,6.05082969]
[1729772402192,3.94687,2533.7,2533.3,6.05082969]
[1729772402759,3.94649,2533.9,2533.4,5.25417969]
[1729772403063,3.94649,2533.9,2533.4,9.20133969]
[1729772403396,4.73286,2534.1,2533.6,6.08239969]
[1729772403612,3.94626,2534.1,2533.6,6.08239969]
[1729772403764,3.94626,2534.1,2533.6,4.77536]
[1729772403971,3.94626,2534.1,2533.6,6.08239969]
[1729772404174,0.7979,2534.3,2533.6,6.08239969]
[1729772404380,3.0,2534.4,2533.9,2.08943969]
[1729772404570,3.94613,2534.2,2533.9,0.7824]
[1729772404894,3.94586,2534.3,2533.9,2.08943969]
[1729772405191,3.94586,2534.3,2533.9,4.72886]
[1729772405411,3.94586,2534.3,2533.9,6.03589969]
[1729772405955,3.94572,2534.4,2533.9,6.03583969]
[1729772406271,3.94572,2534.4,2534.0,3.94627]
[1729772407082,3.94566,2534.5,2534.0,3.94623]
[1729772407285,3.94566,2534.5,2534.1,0.7628]
[1729772407461,3.94566,2534.5,2534.1,4.70889]
[1729772407800,3.94534,2534.7,2534.2,3.94591]
[1729772408095,3.94535,2534.7,2534.3,0.07891182]
[1729772408393,3.94555,2534.5,2534.2,0.7628]
[1729772409100,3.94572,2534.4,2534.2,0.7628]
[1729772410178,3.94539,2534.6,2534.2,1.2809913]
[1729772410179,3.94557,2534.5,2534.2,1.2809913]
[1729772410798,3.9457,2534.4,2534.2,1.2809913]
[1729772411387,7.89125,2534.5,2534.2,1.2809913]
[1729772411759,3.94571,2534.4,2534.2,1.2809913]
[1729772412200,3.94557,2534.5,2534.2,1.2809913]
[1729772412403,3.9457,2534.4,2534.2,1.2809913]
[1729772412602,3.9457,2534.4,2534.2,0.7628]
[1729772413103,3.94586,2534.3,2534.2,0.7628]
[1729772413262,3.94586,2534.3,2533.9,0.7879]
[1729772413882,7.8918,2534.3,2533.9,0.7879]
[1729772414307,3.94586,2534.3,2533.9,0.7879]
[1729772414605,3.94586,2534.3,2533.9,1.73493523]
[1729772414809,3.94586,2534.3,2533.9,5.68139523]
[1729772415014,3.94586,2534.3,2534.0,0.7768]
[1729772415506,0.821,2534.8,2534.0,0.7768]
[1729772415711,3.94561,2534.5,2534.0,4.72305]
[1729772416010,3.94565,2534.5,2534.1,4.8999144]
[1729772416311,3.94565,2534.5,2534.1,0.9537544]
[1729772417106,3.94579,2534.4,2534.1,0.9537544]
[1729772417309,3.94579,2534.4,2534.0,4.72311]
[1729772417509,3.94579,2534.4,2534.0,0.7768]
[1729772418106,7.89188,2534.3,2534.0,0.7768]
[1729772418314,3.94594,2534.3,2534.0,0.7768]
[1729772420587,3.94603,2534.2,2534.0,0.7768]
[1729772421682,3.94617,2534.1,2534.0,0.7768]
[1729772421884,3.94597,2534.3,2534.0,0.7768]
[1729772422613,3.94608,2534.2,2534.0,0.7768]
[1729772424026,3.94589,2534.3,2534.0,0.7768]
[1729772425483,3.94603,2534.2,2534.0,0.7768]
[1729772426988,3.94617,2534.1,2534.0,0.7768]
[1729772427186,3.94603,2534.2,2534.0,0.7768]
[1729772432226,3.94604,2534.2,2534.0,0.7768]
[1729772432431,3.94617,2534.1,2534.0,0.7768]
[1729772432600,0.7523,2534.0,2533.5,0.8208]
[1729772432808,5.2526531,2533.7,2533.0,0.8208]
[1729772433003,3.9468,2533.7,2533.3,3.94737]
[1729772433207,3.9468,2533.7,2533.3,0.8208]
[1729772433390,7.89369,2533.7,2533.3,0.8208]
[1729772433591,3.9468,2533.7,2533.3,0.8208]
[1729772434420,5.2526931,2533.6,2533.3,0.8208]
[1729772434599,3.94696,2533.6,2533.3,0.8208]
[1729772435723,3.94743,2533.3,2533.1,0.7976]
[1729772435933,1.3057331,2533.2,2532.7,0.814]
[1729772436232,3.94773,2533.1,2532.7,0.814]
[1729772436606,3.94773,2533.1,2532.7,4.76232]
[1729772436795,3.94796,2533.0,2532.7,0.814]
[1729772437117,3.94781,2533.1,2532.7,0.814]
[1729772437799,3.94802,2533.0,2532.7,0.814]
[1729772437993,3.94805,2532.9,2532.7,0.814]
[1729772438193,3.94787,2533.1,2532.7,4.76234]
[1729772438790,3.94791,2533.0,2532.7,0.814]
[1729772440494,3.94805,2532.9,2532.7,0.814]
[1729772441931,3.94805,2532.9,2532.5,3.94857]
[1729772441932,3.94805,2532.9,2532.5,0.8301]
[1729772442228,3.94879,2532.5,2532.0,4.72512]
[1729772442441,3.94905,2532.3,2532.0,0.7757]
[1729772442726,4.73988,2532.5,2532.0,0.7757]
[1729772443032,4.73988,2532.5,2532.0,8.6744]
[1729772443033,3.94878,2532.5,2532.0,8.6744]
[1729772443202,3.94878,2532.5,2532.1,3.94927]
[1729772443709,3.9486,2532.6,2532.1,3.94917]
[1729772444107,3.9487,2532.5,2532.1,3.94917]
[1729772444534,3.9486,2532.6,2532.1,3.94917]
[1729772444832,3.9486,2532.6,2532.1,4.91694984]
[1729772445012,3.9486,2532.6,2532.1,0.96777984]
[1729772445205,3.94883,2532.4,2532.0,4.7251]
[1729772445531,3.94917,2532.2,2532.0,0.7757]
[1729772446031,3.94929,2532.1,2531.9,0.11645467]
[1729772446228,3.94944,2532.0,2531.9,0.11645467]
[1729772446738,3.94936,2532.1,2531.9,0.25940642]
[1729772447120,3.94944,2532.0,2531.9,0.25940642]
[1729772447429,3.94936,2532.1,2531.9,0.25940642]
[1729772447632,7.89879,2532.1,2531.9,0.25940642]
[1729772447795,3.94936,2532.1,2531.9,0.25940642]
[1729772449036,3.94906,2532.3,2531.9,0.25940642]
[1729772449273,3.94906,2532.3,2531.9,0.76975862]
[1729772449602,3.94882,2532.4,2532.0,3.94943]
[1729772449998,7.89772,2532.4,2531.9,4.71932862]
[1729772450203,3.94882,2532.4,2531.9,4.71932862]
[1729772450731,3.9486,2532.6,2532.1,4.75897]
[1729772450932,3.94867,2532.5,2532.1,4.75897]
[1729772451101,3.94851,2532.6,2532.1,8.70817]
[1729772451521,3.94851,2532.6,2532.1,4.7589]
[1729772451720,3.9488,2532.5,2532.1,0.8097]
[1729772452137,3.9488,2532.5,2532.1,5.74246023]
[1729772452842,3.94851,2532.6,2532.2,3.94912]
[1729772453462,3.94851,2532.6,2532.2,3.94898]
[1729772453633,3.94875,2532.5,2532.1,1.79318023]
[1729772453840,7.89757,2532.5,2532.1,1.79318023]
[1729772454024,3.94875,2532.5,2532.1,1.79318023]
[1729772454648,3.94875,2532.5,2532.1,5.74244023]
[1729772455564,7.89752,2532.5,2532.1,1.79318023]
[1729772455867,3.94875,2532.5,2532.1,1.79318023]
[1729772456470,3.94883,2532.4,2532.1,1.79318023]
[1729772456795,3.94868,2532.5,2532.1,1.79318023]
[1729772457961,3.94883,2532.4,2532.1,1.79318023]
[1729772458766,3.94868,2532.5,2532.1,1.79318023]
[1729772459930,3.94848,2532.7,2532.2,4.52327202]
[1729772460130,3.94853,2532.6,2532.2,4.52327202]
[1729772460872,3.94873,2532.5,2532.2,0.57425202]
[1729772461369,3.94853,2532.6,2532.2,4.52332202]
[1729772461949,3.94866,2532.5,2532.2,0.57425202]
[1729772462140,3.94851,2532.6,2532.2,0.57425202]
[1729772462336,3.94869,2532.5,2532.2,0.57425202]
[1729772463675,3.94851,2532.6,2532.2,1.88171741]
[1729772463972,3.94851,2532.6,2532.3,0.66405774]
[1729772464177,3.94843,2532.7,2532.4,0.7623]
[1729772464487,3.94851,2532.6,2532.4,0.7623]
[1729772466343,3.94866,2532.5,2532.4,0.7623]
[1729772466678,3.94837,2532.7,2532.4,0.7623]
[1729772466982,3.94837,2532.7,2532.4,1.82549231]
[1729772467185,3.94852,2532.6,2532.4,0.7623]
[1729772467760,3.94866,2532.5,2532.4,0.7623]
[1729772468368,3.94852,2532.6,2532.4,0.7623]
[1729772468676,3.94866,2532.5,2532.4,0.7623]
[1729772469039,3.94852,2532.6,2532.4,0.7623]
[1729772471977,3.94866,2532.5,2532.4,0.7623]
[1729772474087,3.94866,2532.5,2531.9,0.25940642]
[1729772474088,3.94944,2532.0,2531.9,0.25940642]
[1729772474244,3.94931,2532.1,2531.9,0.25940642]
[1729772474645,7.89873,2532.1,2531.9,0.25940642]
[1729772474844,3.94931,2532.1,2531.9,0.25940642]
[1729772475056,4.69954,2532.0,2531.9,0.25940642]
[1729772475546,3.94944,2532.0,2531.9,0.25940642]
[1729772477167,6.25253693,2532.0,2531.9,0.25940642]
[1729772477347,7.07033693,2532.0,2531.9,0.25940642]
[1729772478458,10.07033693,2532.0,2531.9,0.25940642]
[1729772479161,8.76287154,2532.0,2531.9,0.25940642]
[1729772483258,0.7896,2532.2,2531.9,0.25940642]
[1729772483586,3.94929,2532.1,2531.9,0.25940642]
[1729772483753,3.94944,2532.0,2531.9,0.25940642]
[1729772484168,0.7896,2532.2,2531.9,0.25940642]
[1729772484371,3.9493,2532.1,2531.9,0.25940642]
[1729772485361,7.89871,2532.1,2531.9,0.25940642]
[1729772485559,3.9493,2532.1,2531.9,0.25940642]
[1729772486665,3.9491,2532.3,2531.9,2.19923599]
[1729772486862,3.94904,2532.3,2531.9,0.25940642]
[1729772487063,7.89813,2532.3,2531.9,0.25940642]
[1729772488173,3.94931,2532.1,2531.9,0.25940642]
[1729772488566,3.94916,2532.2,2531.9,0.25940642]
[1729772488867,3.94916,2532.2,2531.9,1.2867456]
[1729772489759,3.94931,2532.1,2531.9,1.2867456]
[1729772489996,3.94931,2532.1,2531.9,0.25940642]
[1729772491785,3.94917,2532.2,2531.9,0.25940642]
[1729772491978,3.94917,2532.2,2531.9,1.56687181]
[1729772492194,3.94917,2532.2,2531.9,0.25940642]
[1729772493914,8.0429,2533.1,2532.1,6.08322539]
[1729772494116,0.36937417,2533.0,2532.6,6.08250539]
[1729772494358,3.94795,2533.0,2532.6,2.13406539]
[1729772494677,3.94829,2532.8,2532.4,0.8266]
[1729772495013,3.94835,2532.7,2532.4,0.8266]
[1729772495176,3.94866,2532.5,2532.2,0.8266]
[1729772495680,3.94901,2532.3,2532.0,0.8266]
[1729772496781,3.94876,2532.5,2532.1,3.94928]
[1729772497126,7.89758,2532.5,2532.0,4.77596]
[1729772497417,3.94876,2532.5,2532.1,4.84764964]
[1729772497780,4.71127,2532.7,2532.1,0.89848964]
[1729772497981,0.7629,2532.7,2532.1,0.89848964]
[1729772498197,3.94874,2532.5,2532.0,0.8266]
[1729772498393,3.94874,2532.5,2532.0,4.77595]
[1729772499338,3.94874,2532.5,2532.1,3.94928]
[1729772500435,3.94907,2532.3,2532.0,0.8266]
[1729772500735,3.94884,2532.4,2532.0,0.8266]
[1729772500933,3.949,2532.3,2532.0,0.8266]
[1729772501823,3.94885,2532.4,2531.9,8.15836642]
[1729772502037,3.94901,2532.3,2531.9,4.20885642]
[1729772502244,3.94901,2532.3,2531.9,8.15837642]
[1729772502524,3.94885,2532.4,2531.9,8.15837642]
[1729772504345,3.94885,2532.4,2532.0,3.94944]
[1729772504638,3.94869,2532.5,2532.0,3.94944]
[1729772504942,0.7629,2532.7,2532.0,3.94944]
[1729772505122,3.94875,2532.5,2532.0,3.94944]
[1729772505325,3.94882,2532.4,2532.0,3.94944]
[1729772507819,3.94882,2532.4,2532.0,7.89876]
[1729772508021,3.94867,2532.5,2532.1,3.94927]
[1729772508443,3.94867,2532.5,2532.2,0.7769]
[1729772509245,3.94883,2532.4,2532.2,0.7769]
[1729772509416,3.94867,2532.5,2532.2,0.7769]
[1729772509743,3.94854,2532.6,2532.2,0.7769]
[1729772509955,3.94867,2532.5,2532.2,0.7769]
[1729772514761,0.7629,2532.7,2532.2,4.72597]
[1729772514961,3.9482,2532.8,2532.4,3.94876]
[1729772515655,3.9482,2532.8,2532.3,0.7565]
[1729772515960,3.94836,2532.7,2532.3,4.70545]
[1729772516164,3.94899,2532.3,2532.1,0.7565]
[1729772516451,3.94899,2532.3,2531.9,4.96549642]
[1729772516651,3.94906,2532.3,2531.9,2.32366862]
[1729772517223,3.94906,2532.3,2531.9,6.27324862]
[1729772518134,3.94866,2532.5,2532.1,1.3077622]
[1729772518314,3.94883,2532.4,2532.2,1.3077622]
[1729772518518,4.3077622,2532.8,2532.3,0.7783]
[1729772518519,3.0,2532.8,2532.3,0.7783]
[1729772518757,3.94888,2532.4,2532.0,4.77824]
[1729772519233,3.94888,2532.4,2532.0,6.0860022]
[1729772519431,3.94888,2532.4,2532.0,10.0354422]
[1729772519625,3.94888,2532.4,2532.0,2.1365622]
[1729772519825,3.94888,2532.4,2532.0,6.0859822]
[1729772520927,3.94858,2532.6,2532.1,1.3077622]
[1729772521131,7.89722,2532.6,2532.2,1.3077622]
[1729772521434,3.94875,2532.5,2532.0,6.0859222]
[1729772521633,3.94875,2532.5,2532.0,10.0352622]
[1729772521851,3.94875,2532.5,2532.1,3.94922]
[1729772522059,3.94875,2532.5,2532.1,5.2569822]
[1729772523366,3.94875,2532.5,2532.1,3.94922]
[1729772523937,2.0959622,2532.7,2532.0,0.8288]
[1729772524131,2.0959622,2532.7,2532.0,6.0859622]
[1729772524132,3.94891,2532.4,2532.0,6.0859622]
[1729772525663,7.89785,2532.4,2532.0,6.0859622]
[1729772526161,3.94891,2532.4,2532.0,6.0859622]
[1729772526727,7.89782,2532.4,2532.0,6.0859622]
[1729772527141,3.94891,2532.4,2532.0,6.0859622]
[1729772527743,3.94891,2532.4,2532.1,1.3077622]
[1729772528167,3.94861,2532.6,2532.2,5.2567922]
[1729772528367,4.73663,2532.7,2532.3,0.7972]
[1729772528654,3.9482,2532.8,2532.5,1.3077622]
[1729772528887,3.94836,2532.7,2532.3,6.0538622]
[1729772529401,2.1248622,2533.0,2532.4,3.94875]
[1729772529402,5.2559122,2532.9,2532.4,3.94875]
[1729772529571,3.94815,2532.9,2532.4,3.94875]